Cogmind - Beta 15 @@@ ROGUE MODE // 2025.06.24 @ 10:07:47 Player: Skysub Result: Destroyed by G-50 Soldier with Heavy Laser Performance ------------- Evolutions (5) 2500 Regions Visited (6) 1200 Robots Destroyed (42) 210 Value Destroyed (1021) 1021 Prototype IDs (26) 520 Alien Tech Used (0) 0 Bonus (800) 800 TOTAL SCORE: 6251 Bonus ------- Registered with UFD 300 Met Optimus in HQ 500 Cogmind --------- Core Integrity 0/1000 Matter 300/300 Energy 100/100 System Corruption 2% Temperature Cool (18) Movement Treading (165) Location -5/Upper Caves Parts ------- > --- POWER (2) -------- (None) > --- PROPULSION (6) --- Light Treads Armored Treads > --- UTILITY (7) ------ Large Storage Unit Advanced Signal Interpreter Makeshift Salvage Targeting Computer Core Analyzer > --- WEAPON (2) ------- Companion Sword > --- INVENTORY (15) --- Light Ion Engine Improved Coolant Injector Structural Scanner Surveybot 17 Chip ECM Suite Phase Shifter Enhanced Scrap Shield Force Field Advanced System Shield Rainbow Chip Autogun Mini Grenade Launcher Peak State ------------ > --- POWER ------------ Light Ion Engine Light Fission Core > --- PROPULSION ------- Thunder Leg Enhanced Armored Leg Enhanced Armored Leg Xenon Bombardment Thruster Xenon Bombardment Thruster > --- UTILITY ---------- Large Storage Unit Weight Redist. System Deep Structural Scanner Experimental Sensor Array Advanced Signal Interpreter Improved Melee Analysis Suite Layered Light Armor Plating > --- WEAPON ----------- Companion Sword > --- INVENTORY -------- Light Ion Engine Carbon-fiber Leg Improved Coolant Injector Structural Scanner Surveybot 17 Chip Core Analyzer ECM Suite Phase Shifter Improved Light Armor Plating Improved Light Armor Plating Force Field Advanced System Shield Rainbow Chip Autogun Mini Grenade Launcher [Rating: 75] Favorites ----------- Power Ion Engine Engine Ion Engine Power Core Light Fission Core Propulsion Light Treads Treads Light Treads Leg Enhanced Armored Leg Flight Unit Xenon Bombardment Thruster Utility Large Storage Unit Device ECM Suite Storage Large Storage Unit Processor Advanced Signal Interpreter Protection Medium Armor Plating Weapon Companion Sword Ballistic Gun Autogun Slashing Weapon Companion Sword Build | -11 -10 -10 -9 -6 -5 -5 ------- Run | Yrd Mat Sub Scr Fac Fac Upp Slots Evolved 10 | . . . . 8 2 . Power 1 | . . . . 1 . . Propulsion 4 | . . . . 2 2 . Utility 5 | . . . . 5 . . Weapon . | . . . . . . . Parts Attached 58 | 7 8 3 5 18 6 11 Power 6 | 1 1 . 2 1 1 . Engine 4 | 1 1 . 1 1 . . Core 2 | . . . 1 . 1 . Reactor . | . . . . . . . Propulsion 20 | 2 . 1 1 7 3 6 Treads 6 | 2 . 1 1 . . 2 Leg 5 | . . . . 2 3 . Wheel . | . . . . . . . Hover . | . . . . . . . Flight 9 | . . . . 5 . 4 Utility 26 | 2 5 1 1 10 2 5 Device 9 | 1 1 . 1 4 1 1 Storage 3 | 1 2 . . . . . Processor 5 | . . . . 3 . 2 Hackware . | . . . . . . . Protection 9 | . 2 1 . 3 1 2 Artifact . | . . . . . . . Weapon 6 | 2 2 1 1 . . . Energy Gun . | . . . . . . . Energy Cannon . | . . . . . . . Ballistic Gun 4 | 2 2 . . . . . Ballistic Cannon . | . . . . . . . Launcher . | . . . . . . . Special Weapon . | . . . . . . . Impact Weapon . | . . . . . . . Slashing Weapon 2 | . . 1 1 . . . Piercing Weapon . | . . . . . . . Special Melee Weapon . | . . . . . . . Unidentified Prototypes 3 | . . . 1 . 1 1 Corrupted Parts 1 | . . . . . . 1 System Corruption 1 | . . . . . . 1 Parts Lost 25 | . 2 . . 4 7 12 Power 3 | . 1 . . . 2 . Propulsion 11 | . . . . 2 3 6 Utility 11 | . 1 . . 2 2 6 Weapon . | . . . . . . . Highest Loss Streak 7 | . 1 . . 3 7 6 To Critical Strikes . | . . . . . . . Average Backups 9 | 2 7 13 8 12 14 12 Power 1 | . 1 1 . . 1 1 Propulsion 1 | 1 2 2 1 3 2 . Utility 4 | . . 3 4 7 8 9 Weapon 2 | . 4 6 1 1 2 2 Tool/Special . | . . . . . . . Unused Backups 41 | . 2 8 20 1 3 7 Power 6 | . . 1 4 . . 1 Propulsion 6 | . . 2 2 . 2 . Utility 13 | . . . 6 1 1 5 Weapon 14 | . 2 5 6 . . 1 Tool/Special 2 | . . . 2 . . . Average Slot Usage (%) 71 | . 99 100 61 72 89 36 Engine 9 | . 13 14 10 5 4 . Treads 20 | . 28 28 26 2 . . Leg 2 | . . . . 2 18 . Flight 2 | . . . . 17 11 5 Device 4 | . 2 5 1 13 21 . Storage 11 | . 14 14 13 6 5 5 Processor 3 | . . . . 13 11 15 Protection 3 | . 11 8 1 2 . . Ballistic Gun 6 | . 28 15 3 . . . Slashing Weapon 4 | . . 12 3 6 5 5 Peak Build Rating 75 | 9 12 12 21 55 75 49 Average Rating 18 | 6 8 11 8 45 69 32 On Entrance 21 | . 9 11 12 21 50 44 Naked Turns 163 | . . . 163 . . . Heaviest Build 43 | 12 38 37 37 43 38 31 Greatest Support 81 | 40 40 40 43 49 81 43 Greatest Overweight (x) 7 | . . . 6 2 . 7 Average Overweight (x) . | . . . . . . 2 Largest Inventory Capacity 15 | 8 15 15 15 15 15 15 Average Capacity 14 | 7 11 15 14 15 15 15 Most Carried 15 | 4 15 15 15 15 15 15 Average Carried 9 | 2 7 14 8 12 14 13 Final Capacity 15 | 8 15 15 15 15 15 15 Final Carried 15 | 4 14 15 15 14 15 13 Class Distribution -------------------- 88% | Mutant 9% | Infiltrator-Assassin Dominant Class ---------------- Mutant | -10/Materials Mutant | -10/Subcaves Mutant | -9/Scraptown Mutant | -6/Factory Infiltrator-Assassin | -5/Factory Mutant | -5/Upper Caves Resources | -11 -10 -10 -9 -6 -5 -5 ----------- Run | Yrd Mat Sub Scr Fac Fac Upp Matter Collected 1206 | 297 230 222 40 242 40 135 Remotely . | . . . . . . . Salvage Created 1317 | 86 505 45 . 190 109 382 Parts 83 | 5 35 3 . 15 6 19 Haulers Intercepted 1 | . 1 . . . . . Recyclers Shooed 2 | 1 . . . . 1 . Parts Field Recycled . | . . . . . . . Retrieved Matter . | . . . . . . . Parts Self-Destructed 15 | . . 3 . . . 12 Prevented . | . . . . . . . Kills | -11 -10 -10 -9 -6 -5 -5 ------- Run | Yrd Mat Sub Scr Fac Fac Upp Combat Hostiles Destroyed 29 | . 11 1 . 4 1 12 Melee 17 | . . . . 4 1 12 Guns 12 | . 11 1 . . . . Classes Destroyed 12 | 2 5 1 . 1 1 2 Worker 5 | . . . . 3 2 . Builder 3 | . 2 . . 1 . . Tunneler 2 | 2 . . . . . . Hauler 1 | . 1 . . . . . Recycler 1 | 1 . . . . . . Watcher 1 | . 1 . . . . . Swarmer 16 | . 3 . . 3 . 10 Grunt 9 | . 8 . . 1 . . Sentry 1 | . . . . . 1 . Programmer 1 | . . . . . . 1 Subdweller 1 | . . 1 . . . . Mutant 1 | . . . . . . 1 Best Kill Streak 5 | 2 4 1 . 3 1 5 Combat Bots Only 5 | . 4 1 . 3 1 5 Max Kills in Single Turn 1 | 1 1 1 . 1 1 1 Gunslinging . | . . . . . . . Exploded . | . . . . . . . Melee 1 | . . . . 1 1 1 Uniques/NPCs Destroyed . | . . . . . . . Combat | -11 -10 -10 -9 -6 -5 -5 -------- Run | Yrd Mat Sub Scr Fac Fac Upp Hostile Shots Fired 298 | . 47 13 . 32 52 154 Missed 70 | . 16 3 . 7 18 26 Hits 228 | . 31 10 . 25 34 128 Projectile 228 | . 31 10 . 25 34 128 AOE 2 | . . . . 1 1 . Critical Strikes 6 | . . . . . 5 1 Damage Taken 4366 | . 415 218 . 557 1210 1966 Core 1262 | . 125 44 . 79 127 887 Absorbed by Shields 58 | . . . . 58 . . Redirected to Shielding 43 | . . . . 43 . . Regen/Repaired (Parts) 110 | . . . 110 . . . Core Remaining (%) 74 | 100 . . 32 90 . . Volleys Fired 71 | 13 51 7 . . . . Largest 2 | 2 2 2 . . . . Hottest 46 | 40 46 46 . . . . Shots Fired 135 | 26 100 9 . . . . Gun 135 | 26 100 9 . . . . Cannon . | . . . . . . . Launcher . | . . . . . . . Special . | . . . . . . . Kinetic 135 | 26 100 9 . . . . Thermal . | . . . . . . . Explosive . | . . . . . . . Electromagnetic . | . . . . . . . Robot Hit Streak 9 | 9 8 9 . . . . Robot Miss Streak 5 | 2 5 2 . . . . Penetration Max . | . . . . . . . Secondary Targets . | . . . . . . . Shots Hit Robots 128 | 17 56 5 . 22 7 21 Core Hits 57 | 5 25 2 . 9 4 12 Critical Kills . | . . . . . . . Critical Parts Destroyed . | . . . . . . . Critical Strikes 2 | . . . . . 2 . Melee Attacks 99 | . . 8 . 32 17 42 Impact . | . . . . . . . Slashing 99 | . . 8 . 32 17 42 Piercing . | . . . . . . . Sneak Attacks 9 | . . . . 4 4 1 Combat Hostiles 1 | . . . . . . 1 Follow-up Attacks 1 | . . . . 1 . . Damage Inflicted 3272 | 204 618 60 . 1129 447 814 Guns 882 | 204 618 60 . . . . Cannons . | . . . . . . . Explosions . | . . . . . . . Melee 2390 | . . . . 1129 447 814 Ramming . | . . . . . . . Kinetic 882 | 204 618 60 . . . . Thermal . | . . . . . . . Explosive . | . . . . . . . Electromagnetic . | . . . . . . . Impact . | . . . . . . . Slashing 2390 | . . . . 1129 447 814 Piercing . | . . . . . . . Highest Corruption 8 | . 8 8 8 1 1 2 Average Corruption 4 | . 6 8 8 1 1 1 Corruption Purged . | . . . . . . . Corruption Blocked . | . . . . . . . Effects 44 | . 22 18 . . . 4 Message Errors 10 | . 3 6 . . . 1 Matter Fused 12 | . 7 4 . . . 1 Heat Flow Errors 2 | . 1 1 . . . . Energy Discharges 5 | . 3 1 . . . 1 Data Loss (minor) 9 | . 3 6 . . . . Data Loss (major) 1 | . . . . . . 1 Misfires 1 | . 1 . . . . . Alerts 1 | . 1 . . . . . Weapon Failures 3 | . 3 . . . . . Overload Shots . | . . . . . . . Overflow Damage 273 | . . . . 156 93 24 Projectiles . | . . . . . . . Explosions . | . . . . . . . Melee 273 | . . . . 156 93 24 Knockbacks . | . . . . . . . Impact . | . . . . . . . Kinetic . | . . . . . . . Secondary . | . . . . . . . Self-Inflicted Damage . | . . . . . . . Shots . | . . . . . . . Rammed . | . . . . . . . Targets Rammed . | . . . . . . . Kicked . | . . . . . . . Crushed . | . . . . . . . Highest Temperature 257 | . 182 257 . . . . Average Temperature 27 | . 17 140 . . . . Received Heat Transfer 444 | . 186 30 . 96 45 87 Siege Activations . | . . . . . . . Martial Activations . | . . . . . . . Shielding Activations . | . . . . . . . Robots Disrupted . | . . . . . . . Combat Hostiles . | . . . . . . . Robots Corrupted . | . . . . . . . Combat Hostiles . | . . . . . . . Parts Fried 1 | . . . . . . 1 Impact Corruptions . | . . . . . . . Robots Melted . | . . . . . . . Combat Hostiles . | . . . . . . . Parts Melted . | . . . . . . . Heat Transferred . | . . . . . . . Parts Sabotaged . | . . . . . . . Parts Stolen . | . . . . . . . Parts Stripped . | . . . . . . . Power Chain Reactions . | . . . . . . . Alert | -11 -10 -10 -9 -6 -5 -5 ------- Run | Yrd Mat Sub Scr Fac Fac Upp Maximum Alert Level . | . . . . . . . Low Security (%) 100 | 100 100 . . 100 100 . Level 1 . | . . . . . . . Level 2 . | . . . . . . . Level 3 . | . . . . . . . Level 4 . | . . . . . . . Level 5 . | . . . . . . . High Security . | . . . . . . . Max Security . | . . . . . . . Peak Influence 144 | 5 125 . . 144 39 . Initial 39 | . . . . . 39 . Average 28 | . 46 . . 43 3 . Influence Increases 1052 | 15 395 . . 256 86 300 Destroy 0b10 Robot/C 560 | . 220 . . 80 20 240 Destroy 0b10 Robot/NC 65 | 15 20 . . 20 10 . Destroy Leader 114 | . 64 . . 10 10 30 Successful Hack 68 | . . . . 68 . . Select Force Hacks 30 | . 30 . . . . . Destroy Structure 20 | . 1 . . 3 16 . Partial Spotted 45 | . . . . 30 15 . Lose Combat Pursuer 150 | . 60 . . 45 15 30 Influence Decreases 1027 | 15 391 4 . 176 151 290 Entered New Map 50 | . . 3 . . 41 6 Time Decay 803 | 15 371 1 . 146 86 184 Lost Part 174 | . 20 . . 30 24 100 Squads Dispatched 10 | . 3 . . 1 6 . Investigation 4 | . 3 . . . 1 . Extermination 2 | . . . . 1 1 . Reinforcement 4 | . . . . . 4 . Assault . | . . . . . . . Garrison . | . . . . . . . Intercept . | . . . . . . . Searches Triggered . | . . . . . . . Construction Impeded . | . . . . . . . Haulers Reinforced 1 | . . . . . 1 . Active Scanning Responses . | . . . . . . . Cargo Convoy Interrupts 1 | . . . . . 1 . Stealth | -11 -10 -10 -9 -6 -5 -5 --------- Run | Yrd Mat Sub Scr Fac Fac Upp Distress Signals 2 | . 1 . . 1 . . Communications Jammed . | . . . . . . . Distress Signals . | . . . . . . . Times Spotted 65 | . 22 10 . 10 7 16 Peak Tracking Total 5 | . 4 5 . 4 3 5 Tactical Retreats 10 | . 3 . . 1 4 2 Traps | -11 -10 -10 -9 -6 -5 -5 ------- Run | Yrd Mat Sub Scr Fac Fac Upp Traps Triggered 6 | . 5 . . 1 . . Indirectly . | . . . . . . . Trap Hack Attempts . | . . . . . . . Triggered . | . . . . . . . Disarmed . | . . . . . . . Reprogrammed . | . . . . . . . Reused . | . . . . . . . Traps Extracted . | . . . . . . . Installed . | . . . . . . . Triggered . | . . . . . . . Machines | -11 -10 -10 -9 -6 -5 -5 ---------- Run | Yrd Mat Sub Scr Fac Fac Upp Machines Disabled 1 | . . 1 . . . . Max in Single Turn 1 | . . 1 . . . . Machines Repaired . | . . . . . . . Machines Dismantled . | . . . . . . . Machines Sabotaged . | . . . . . . . Overloaded Fab Kills . | . . . . . . . Hacking | -11 -10 -10 -9 -6 -5 -5 --------- Run | Yrd Mat Sub Scr Fac Fac Upp Machines Accessed 17 | . 2 2 4 3 5 1 Terminals 4 | . . . . 3 1 . Fabricators 1 | . . . . . 1 . Repair Stations . | . . . . . . . Recycling Units 5 | . 2 . . . 3 . Scanalyzers . | . . . . . . . Garrison Access . | . . . . . . . Total Hacks 59 | . 6 6 25 10 11 1 Successful 45 | . 4 6 25 6 3 1 Failed 14 | . 2 . . 4 8 . Catastrophic 5 | . . . . 2 3 . Database Lockouts . | . . . . . . . Manual 13 | . 2 . . 4 7 . Terminals 13 | . . . . 10 3 . Fabricators 1 | . . . . . 1 . Repair Stations . | . . . . . . . Recycling Units 13 | . 6 . . . 7 . Scanalyzers . | . . . . . . . Garrison Access . | . . . . . . . Terminal Hacks 36 | . . 6 25 4 . 1 Record 28 | . . 5 23 . . . Open Door 2 | . . . 1 . . 1 Repair Station Index 1 | . . . . 1 . . Registered Components 1 | . . . . 1 . . Registered Prototypes 1 | . . . . 1 . . Zone Layout 1 | . . . . 1 . . Proto ID Catalog 2 | . . 1 1 . . . Fabricator Hacks . | . . . . . . . Repair Station Hacks . | . . . . . . . Recycling Unit Hacks 4 | . 3 . . . 1 . Report Inventory 3 | . 2 . . . 1 . Retrieve Components 1 | . 1 . . . . . Scanalyzer . | . . . . . . . Garrison Access Hacks . | . . . . . . . Unauthorized Hacks 5 | . 1 . . 2 2 . Terminals 3 | . . . . 2 1 . Botnet 3 | . . . . 2 1 . Fabricators . | . . . . . . . Repair Stations . | . . . . . . . Recycling Units 2 | . 1 . . . 1 . Tunnel 1 | . 1 . . . . . Fedlink 1 | . . . . . 1 . Scanalyzers . | . . . . . . . Garrison Access . | . . . . . . . Data Cores Recovered . | . . . . . . . Used . | . . . . . . . Hacking Detections 9 | . 1 . . 3 5 . Full Trace Events 1 | . 1 . . . . . Feedback Events . | . . . . . . . Feedback Blocked . | . . . . . . . Robot Schematics Acquired . | . . . . . . . Robots Built . | . . . . . . . Authchips . | . . . . . . . Time . | . . . . . . . Total Robot Build Rating . | . . . . . . . Part Schematics Acquired . | . . . . . . . Parts Built . | . . . . . . . Authchips . | . . . . . . . Time . | . . . . . . . Total Part Build Rating . | . . . . . . . Parts Repaired . | . . . . . . . Time . | . . . . . . . Parts Recycled . | . . . . . . . Recycled Matter . | . . . . . . . Retrieved Matter . | . . . . . . . Retrieved Components 5 | . 5 . . . . . Parts Scanalyzed . | . . . . . . . Part Schematics Acquired . | . . . . . . . Parts Damaged . | . . . . . . . Bothacking | -11 -10 -10 -9 -6 -5 -5 ------------ Run | Yrd Mat Sub Scr Fac Fac Upp Used RIF Installer . | . . . . . . . Robots Hacked . | . . . . . . . Non-combat . | . . . . . . . Combat . | . . . . . . . Robot Hacks Applied . | . . . . . . . Relay Couplers Released . | . . . . . . . Fabnet Peak Effective % . | . . . . . . . Robots Rewired . | . . . . . . . Allies Hacked . | . . . . . . . Hacks Repelled . | . . . . . . . Allies | -11 -10 -10 -9 -6 -5 -5 -------- Run | Yrd Mat Sub Scr Fac Fac Upp Total Allies . | . . . . . . . Largest Group . | . . . . . . . Highest-Rated Group . | . . . . . . . Highest-Rated Ally . | . . . . . . . Total Orders . | . . . . . . . Ally Attacks . | . . . . . . . Total Damage . | . . . . . . . Kills . | . . . . . . . Allies Corrupted . | . . . . . . . Allies Melted . | . . . . . . . Intel | -11 -10 -10 -9 -6 -5 -5 ------- Run | Yrd Mat Sub Scr Fac Fac Upp Active Infowar (turns) 1618 | 54 159 231 2 370 802 . Sensors 1172 | . . . . 370 802 . Terrain 209 | 54 155 . . . . . Structural 1050 | . 4 231 . 30 785 . ECM 750 | . . . 2 . 748 . Robot Analysis Total . | . . . . . . . Derelict Logs Recovered 6 | . . . 5 . . 1 Drone Launches . | . . . . . . . Drone Recoveries . | . . . . . . . Exploration | -11 -10 -10 -9 -6 -5 -5 ------------- Run | Yrd Mat Sub Scr Fac Fac Upp Turns Passed 8035 | 156 1046 615 4274 471 834 639 Spaces Moved 4774 | 68 432 323 2767 338 583 263 Core 380 | 2 . . 311 . . 67 Treads 3348 | 66 432 323 2456 33 . 38 Legs 638 | . . . . 52 583 3 Wheels . | . . . . . . . Hover . | . . . . . . . Flight 408 | . . . . 253 . 155 Fastest Speed 31 | 50 160 160 50 31 120 110 Average Speed 143 | 156 160 160 148 68 120 199 Slowest Speed 400 | 160 160 160 350 214 120 400 Overloaded Moves . | . . . . . . . Propulsion Burnouts . | . . . . . . . Robots Hopped . | . . . . . . . Potential Cave-ins . | . . . . . . . Cave-ins Triggered . | . . . . . . . Exploration Rate (%) 40 | 6 84 17 86 10 24 53 Regions Visited 6 Branch Regions 3 Pre-discovered Areas 11 | . 1 1 8 . . 1 Known Exits Taken 3 | . . . 1 1 1 . Unknown Exits Taken 3 | 1 1 1 . . . . Scrap Searched 9 | . . . 8 . . 1 Spaces Dug 14 | . . . . 3 8 3 Terrain Destroyed 14 | . . . . 3 8 3 Melee 14 | . . . . 3 8 3 Projectile . | . . . . . . . AOE . | . . . . . . . Terrain Rammed . | . . . . . . . Walls Destroyed . | . . . . . . . Machines Disabled . | . . . . . . . Actions | -11 -10 -10 -9 -6 -5 -5 --------- Run | Yrd Mat Sub Scr Fac Fac Upp Total 5715 | 91 697 403 2988 527 692 317 Wait 434 | . 188 39 7 128 72 . Move 4768 | 67 431 322 2766 337 582 263 Hop . | . . . . . . . Pick Up 125 | 4 12 12 86 4 7 . Fast Attach 39 | 7 2 . 13 7 2 8 Attach 16 | . . . 2 7 4 3 Detach 21 | . . . 15 5 . 1 Swap 19 | . 6 3 1 5 4 . Drop 124 | . 7 12 98 3 4 . Fire 71 | 13 51 7 . . . . Melee 98 | . . 8 . 31 17 42 Ram . | . . . . . . . Kick . | . . . . . . . Crush . | . . . . . . . Escape Stasis . | . . . . . . . Rewire . | . . . . . . . Trap . | . . . . . . . Miscellaneous . | . . . . . . . Route ------- -11/Scrapyard -10/Materials (discovered 5 exits: [*Mat x3] / [*Min] / *Sub) -10/Subcaves -9/Scraptown (discovered 2 exits: *Fac x2) -6/Factory (discovered 4 exits: *Fac x3 / Low) -5/Factory -5/Upper Caves (discovered 1 exit: *Upp) History --------- Turn | Location | Event 6 | -11/Scrapyard | Discovered new exit (range 15) 157 | -11/Scrapyard | Entered Materials 229 | -10/Materials | Discovered new exit (range 14) 310 | -10/Materials | Build established: Mutant 432 | -10/Materials | Discovered new exit (range 16) 728 | -10/Materials | Discovered new exit (range 9) 860 | -10/Materials | Discovered new exit (range 15) 1173 | -10/Materials | Discovered new exit (range 7) 1203 | -10/Materials | Entered Subcaves 1204 | -10/Subcaves | Approached by a straggling Scientist 1264 | -10/Subcaves | Core integrity fell below 50% 1416 | -10/Subcaves | Ambushed by swarm of Subdwellers 1454 | -10/Subcaves | Scientist uncovered a shortcut to Scraptown 1485 | -10/Subcaves | Visited 4L-MR0's lab 1503 | -10/Subcaves | Found Rainbow Chip 1746 | -10/Subcaves | A swath of the cavern ceiling suddenly collapsed 1750 | -10/Subcaves | Visited Clippyterm 1754 | -10/Subcaves | Learned location of Section 7 (-3) 1754 | -10/Subcaves | Learned Factory emergency access door positions 1818 | -10/Subcaves | Entered Scraptown 1822 | -9/Scraptown | System corruption cleaned by C-Scrubber 1913 | -9/Scraptown | Heard Great Nut preacher, LISTEN AND RECITE! 1930 | -9/Scraptown | Visited UFD Registry 1930 | -9/Scraptown | Registered with UFD as "Bladeslasher" 2014 | -9/Scraptown | Scanned Subdweller tech in exchange for log data 2017 | -9/Scraptown | Learned location of Zion (-6) 2018 | -9/Scraptown | Learned 8 Factory zone layouts 2020 | -9/Scraptown | Learned location of Testing (-2) 2022 | -9/Scraptown | Learned Factory emergency access door positions 2298 | -9/Scraptown | Visited Chapter 10 2343 | -9/Scraptown | Visited Cartography Club 2367 | -9/Scraptown | Found Surveybot 17 Chip 2388 | -9/Scraptown | Learned location of Mines (-9) 2388 | -9/Scraptown | Learned location of Lower Caves (-7) 2388 | -9/Scraptown | Learned location of Armory (-3) 2388 | -9/Scraptown | Learned 12 Materials zone layouts 2388 | -9/Scraptown | Learned 20 Factory zone layouts 2388 | -9/Scraptown | Learned 4 Access zone layouts 2388 | -9/Scraptown | Learned 4 Storage zone layouts 2388 | -9/Scraptown | Learned 12 Lower Caves zone layouts 2388 | -9/Scraptown | Learned 16 Lower Caves zone layouts 2388 | -9/Scraptown | Learned 8 Upper Caves zone layouts 2388 | -9/Scraptown | Learned 12 Upper Caves zone layouts 2388 | -9/Scraptown | Learned 20 Proximity Caves zone layouts 2388 | -9/Scraptown | Learned Factory emergency access door positions 2388 | -9/Scraptown | Learned location of 3 exits from Lower Caves 2388 | -9/Scraptown | Learned location of 2 exits from Proximity Caves 2388 | -9/Scraptown | Identified exit to Factory 2406 | -9/Scraptown | Found Deep Structural Scanner 2436 | -9/Scraptown | Visited Junk Repository 2574 | -9/Scraptown | Visited Scrapoid Pod Storage 2582 | -9/Scraptown | Found Scrapoid Pod 2635 | -9/Scraptown | Visited Sword Containment 2787 | -9/Scraptown | Visited Science Guys 2870 | -9/Scraptown | Visited LU-1G1's Boring Crew 3581 | -9/Scraptown | Visited Awakened 3614 | -9/Scraptown | Visited CPS Storage 3671 | -9/Scraptown | Visited CR-KLE's Repair Center 3713 | -9/Scraptown | Visited Bundlers 4111 | -9/Scraptown | Visited Assassins FH 4154 | -9/Scraptown | Visited Fellowship of the Rings 4245 | -9/Scraptown | Visited Spacefarers 4528 | -9/Scraptown | Visited Infowarlord's Domain 4532 | -9/Scraptown | Found Exp. Sensor Array 4960 | -9/Scraptown | Delivered Scrap Shield to a Scientist 5744 | -9/Scraptown | CR-KLE repaired 5 parts 5973 | -9/Scraptown | Met Optimus 5973 | -9/Scraptown | Accepted into 0bPrime 6092 | -9/Scraptown | Entered Factory 6092 | -6/Factory | Evolved 8 slots: Power x1, Propulsion x2, Utility x5 6093 | -6/Factory | Identified exit to Factory 6094 | -6/Factory | Identified exit to Lower Caves 6450 | -6/Factory | Lost 3 parts (2n1u) 6563 | -6/Factory | Entered another Factory area 6563 | -5/Factory | Evolved 2 slots: Propulsion x2 6621 | -5/Factory | Loaded intel: 8 recycling unit locations 6883 | -5/Factory | Build established: Infiltrator-Assassin 7364 | -5/Factory | Cargo convoy interrupted 7387 | -5/Factory | Discovered new exit (range 8) 7395 | -5/Factory | Identified exit to Upper Caves 7397 | -5/Factory | Entered Upper Caves 7398 | -5/Upper Caves | Identified exit to Upper Caves 7399 | -5/Upper Caves | UFD Scientist delivered a prototype 7399 | -5/Upper Caves | Lost 7 parts (2p3n2u) 7450 | -5/Upper Caves | Found Prototype Protection 7450 | -5/Upper Caves | Identified Enh. Scrap Shield 7463 | -5/Upper Caves | Lost 6 parts (2n4u) 7624 | -5/Upper Caves | Core integrity fell below 50% 7660 | -5/Upper Caves | Core integrity fell below 20% 7662 | -5/Upper Caves | Build established: Mutant 7701 | -5/Upper Caves | Lost 6 parts (4n2u) 8036 | -5/Upper Caves | Attracted the attention of an 0b10 checkpoint 8036 | -5/Upper Caves | Destroyed by G-50 Soldier with Heavy Laser Last Messages --------------- 07684_ VTOL Module fries itself beyond repair. 07691_ System corrupted: Matter fused (-7). 07691_ Acquired 7 matter. Companion Sword: "I hope you know what you're doing dragging us around at this speed." 07829_ Acquired derelict log, extracted data. World map confirmed: -3/Armory. 07940_ IO-8RW(M) destroyed. 07950_ Acquired Arm. Treads. 07952_ Acquired 10 matter. 07967_ Searching scrap... 07967_ Found Tesla Rifle. 07967_ Found 56 Matter. 07991_ System corrupted: Energy discharge (-40). 08002_ Acquired Corrupted Lgt. Treads. 08002_ Integrated Corrupted Lgt. Treads (+1). 08006_ Imp. Target Analyzer fried. 08006_ P-70 Sage destroyed. 08010_ Acquired 10 matter. 08036_ Y-64 Sentinel: "INTERCEPTING UNREGISTERED DERELICT." Map ----- +----------------------------------------------------+ | ????????????????????????????????????????????????? | | ????????????????????????????????????????????????? | | ????????????????????????????????????????????????? | | ????????????????????????????????????????????????? | | ????????????????????????????????????????????????? | | ????????????????????????????????????????????????? | | ????????????????????????????????????????????????? | | ????????????????????????????????????????????????? | | ????????????????????????????????????????????????? | | ????????????????????????????????????????????????? | | ????????????????????????????????????????????????? | | ????????????????????????????????????####????????? | | ???????????????????????????????????## ##???????? | | ???????????????????????????????????# ####????? | | ???????????????????????????????????# #????? | | ???????????????????????????????????## ## #????? | | ????????????????####????????????????# ## #????? | | ????????????????# ??????????????## ## ###### | | ????????????????# ??????????????# ## | | ????????????????# $ ???####?????## ## | | ????????????????# ???# ##???## ######### | | ???????????????## ??# ##?## ####??### | | ??????????????## Y ## ### #?## # | | ??????????????# g ## ## ##?# | | ??????????????# g ## ### ###??# | | ??????????????# > @ #????## | | ??????????????# #### ##?????### | | ??????????????# ##?## ### #????????# | | ??????????????# ######## ##?# #????????? | | ??????????????## #????####### #########? | | ???????????????# ##???????## =%= #? | | ???????????????# #####????## #### ## #? | | ???????????????# ## ##?### ### ##??# ## #? | | ???????????????# ## ### #####% %#???# ## ## | | ???????????????# ## ##??# %#%###?# ## ## | | ???????????????# ### ##???## %## ### ## ## | | ???????????????# #?????# %## | | ???????????????# ##?##### %## #### | | ??????????????######### #### ### ##??# | | ??????????????# ##### ## ### ##??## | | ??????????????# ## ## #### #??## | | ??????????????## ### ! #####??# | | ???????????????## #?#*%### #?????## | | ????????????????## #### !#?# ##?????## | | ????????????????## ### #?## ######## | | ????????????????# [ #??## | | ????????????????### % ##???# | | ??????????????????## ######????#### ####### | | ???????????????????## ??????????????## #?????? | | ????????????????????##????????????????#####?????? | +----------------------------------------------------+ Best States ------------- Heat Dissipation 40 Energy Generation 23 Energy Capacity 265 Matter Stores 300 Matter Capacity 300 Sight Range 16 Robot Scan Range 20 Terrain Scan Range 16 Terrain Scan Density 10 ECM Strength 1 Additional Mass Support 6 Armor Coverage 300 Propulsion Shielding 33 Evasion (%) 70 Melee Accuracy 11 Core Analysis 6 Recoil Reduction 2 Salvage Targeting 4 Item Schematics ----------------- None Robot Schematics ------------------ None Fabricated ------------ Nothing Repaired ---------- Nothing Alien Tech Used ----------------- None Achievements -------------- None Challenges ------------ None Game ------ Seed LauncherThermicWeb Manual? 0 Play Time 01:10:55 Cumulative 128.0 hours Start 2025.06.22 @ 22:36:21 End 2025.06.24 @ 10:07:47 Sessions 2 Manual Loads 0 Difficulty Rogue Special Mode None Game No. 136 Rogue 136 Adventurer 0 Explorer 0 Win Type - Total 2 Types 1/0/0/1/0/0/0/0/0/0 Lore% 61 Gallery% 57 Achievement% 51 Wizard Run 0 Options --------- Layout 1 ASCII 0 Keyboard 1 Movement Numpad Keybinds 0 Fullscreen 1 Font 32/SmallcapsGlow Map View 77x35 Zoom Use 0% Tactical HUD 1 Map Filters NONE Filters NONE Steam 1 RUN: 15fd9039-359a-4dcf-9eed-e1932fa22979